fUSD/lending_fUSD_20240404
["ID","MTS","AMOUNT","RATE_DAILY","PERIOD"]
[321462534,1712200342339,-500.0,0.00056438,120]
[321462535,1712200342349,-1291.56,0.00056438,120]
[321462536,1712200342358,-500.0,0.00056438,120]
[321462537,1712200342368,-1169.61,0.00056438,120]
[321462538,1712200342379,-151.0,0.00056438,120]
[321462539,1712200342387,-1966.91,0.00056438,120]
[321462540,1712200342396,-653.18,0.00056438,120]
[321462541,1712200342405,-888.0,0.00056438,120]
[321462542,1712200342415,-579.59,0.00056438,120]
[321462543,1712200342424,-1199.82,0.00056438,120]
[321462544,1712200342435,-161.95523548,0.00056438,120]
[321462545,1712200342446,-567.67,0.00056438,120]
[321462546,1712200342455,-500.0,0.00056438,120]
[321462547,1712200342465,-1162.9,0.00056438,120]
[321462548,1712200342474,-1481.02,0.00056438,120]
[321462549,1712200342484,-500.0,0.00056438,120]
[321462550,1712200342493,-957.29,0.00056438,120]
[321462551,1712200342502,-536.12,0.00056438,120]
[321462552,1712200342512,-185.406329,0.00056438,120]
[321462553,1712200342521,-628.45,0.00056438,120]
[321462554,1712200342530,-702.57,0.00056438,120]
[321462555,1712200342539,-532.29,0.00056438,120]
[321462556,1712200342549,-185.406329,0.00056438,120]
[321462557,1712200342558,-1230.49,0.00056438,120]
[321462558,1712200342568,-500.0,0.00056438,120]
[321462559,1712200342577,-500.0,0.00056438,120]
[321462560,1712200342587,-1354.79,0.00056438,120]
[321462561,1712200342597,-500.0,0.00056438,120]
[321462562,1712200342606,-500.0,0.00056438,120]
[321462563,1712200342616,-500.0,0.00056438,120]
[321462564,1712200342626,-594.72,0.00056438,120]
[321462565,1712200342636,-1168.31,0.00056438,120]
[321462566,1712200342646,-745.92,0.00056438,120]
[321462567,1712200342655,-519.19,0.00056438,120]
[321462568,1712200342664,-510.35,0.00056438,120]
[321462569,1712200342674,-500.0,0.00056438,120]
[321462570,1712200342683,-538.5,0.00056438,120]
[321462571,1712200342692,-1661.46,0.00056438,120]
[321462572,1712200342701,-500.0,0.00056438,120]
[321462573,1712200342711,-810.25,0.00056438,120]
[321462574,1712200342721,-500.0,0.00056438,120]
[321462575,1712200342730,-519.32,0.00056438,120]
[321462576,1712200342739,-856.61,0.00056438,120]
[321462577,1712200342748,-193.775026,0.00056438,120]
[321462578,1712200342757,-1325.1,0.00056438,120]
[321462579,1712200342767,-150.0,0.00056438,120]
[321462580,1712200342776,-496.74,0.00056438,120]
[321462581,1712200342786,-193.775026,0.00056438,120]
[321462582,1712200342795,-1704.02,0.00056438,120]
[321462583,1712200342805,-843.85,0.00056438,120]
[321462584,1712200342814,-500.0,0.00056438,120]
[321462585,1712200342824,-500.0,0.00056438,120]
[321462586,1712200342833,-734.5,0.00056438,120]
[321462587,1712200342843,-500.0,0.00056438,120]
[321462588,1712200342852,-1242.09,0.00056438,120]
[321462589,1712200342862,-500.0,0.00056438,120]
[321462590,1712200342872,-1149.11,0.00056438,120]
[321462591,1712200342885,-500.0109,0.00056438,120]
[321462592,1712200342896,-801.39,0.00056438,120]
[321462593,1712200342906,-500.0,0.00056438,120]
[321462594,1712200342915,-636.22,0.00056438,120]
[321462595,1712200342925,-500.0,0.00056438,120]
[321462596,1712200342934,-500.0,0.00056438,120]
[321462597,1712200342944,-500.0,0.00056438,120]
[321462598,1712200342954,-1372.43,0.00056438,120]
[321462599,1712200342964,-338.216261,0.00056438,120]
[321462600,1712200342973,-338.216261,0.00056438,120]
[321462601,1712200342982,-500.0,0.00056438,120]
[321462602,1712200342991,-500.0,0.00056438,120]
[321462603,1712200343001,-750.539528,0.00056438,30]
[321462604,1712200343010,-500.0,0.00056438,120]
[321462605,1712200343019,-556.7,0.00056438,120]
[321462606,1712200343028,-690.45,0.00056438,120]
[321462607,1712200343037,-828.45,0.00056438,120]
[321462608,1712200343047,-1151.88,0.00056438,120]
[321462609,1712200343056,-750.539528,0.00056438,30]
[321462610,1712200343066,-223.76888,0.00056438,120]
[321462611,1712200343075,-1261.2,0.00056438,120]
[321462612,1712200343084,-1473.05,0.00056438,120]
[321462613,1712200343093,-223.76888,0.00056438,120]
[321462614,1712200343102,-500.0,0.00056438,120]
[321462615,1712200343112,-500.0,0.00056438,120]
[321462616,1712200343122,-1240.18,0.00056438,120]
[321462617,1712200343135,-151.0,0.00056438,120]
[321462618,1712200343322,-735.68,0.00056438,120]
[321462619,1712200343332,-833.51,0.00056438,120]
[321462620,1712200343342,-700.88,0.00056438,120]
[321462621,1712200343351,-1814.63,0.00056438,120]
[321462622,1712200343360,-1000.0,0.00056438,120]
[321462623,1712200343369,-500.0,0.00056438,120]
[321462624,1712200343380,-500.0,0.00056438,120]
[321462625,1712200343390,-500.0,0.00056438,120]
[321462626,1712200343400,-982.74,0.00056438,120]
[321462627,1712200343409,-979.79,0.00056438,120]
[321462628,1712200343418,-500.0,0.00056438,120]
[321462629,1712200343428,-545.1,0.00056438,120]
[321462630,1712200343437,-500.0,0.00056438,120]
[321462631,1712200343447,-560.66,0.00056438,120]
[321462632,1712200343456,-500.0,0.00056438,120]
[321462633,1712200343466,-1375.95,0.00056438,120]
[321462634,1712200343476,-618.23,0.00056438,120]
[321462635,1712200343485,-741.9,0.00056438,120]
[321462636,1712200343495,-493.0,0.00056438,120]
[321462637,1712200343506,-500.0,0.00056438,120]
[321462638,1712200343515,-361.491422,0.00056438,120]
[321462639,1712200343525,-500.0,0.00056438,120]
[321462640,1712200343534,-361.491422,0.00056438,120]
[321462641,1712200343543,-1688.43,0.00056438,120]
[321462642,1712200343553,-1668.8,0.00056438,120]
[321462643,1712200343563,-151.0,0.00056438,120]
[321462644,1712200343572,-500.0,0.00056438,120]
[321462645,1712200343582,-1118.0,0.00056438,120]
[321462646,1712200343591,-500.0,0.00056438,120]
[321462647,1712200343601,-500.0,0.00056438,120]
[321462648,1712200343611,-151.0,0.00056438,120]
[321462649,1712200343620,-954.25,0.00056438,120]
[321462650,1712200343632,-321.98064656,0.00056438,120]
[321462651,1712200343642,-500.0,0.00056438,120]
[321462652,1712200343652,-1884.27,0.00056438,120]
[321462653,1712200343663,-1030.65,0.00056438,120]
[321462654,1712200343672,-500.0,0.00056438,120]
[321462655,1712200343681,-619.94,0.00056438,120]
[321462656,1712200343690,-1616.86,0.00056438,120]
[321462657,1712200343701,-500.0,0.00056438,120]
[321462658,1712200343710,-1251.78,0.00056438,120]
[321462659,1712200343720,-500.0,0.00056438,120]
[321462660,1712200343731,-500.0,0.00056438,120]
[321462661,1712200343740,-1329.29,0.00056438,120]
[321462662,1712200343749,-288.633246,0.00056438,120]
[321462663,1712200343759,-500.0,0.00056438,120]
[321462664,1712200343769,-288.633246,0.00056438,120]
[321462665,1712200343778,-151.0,0.00056438,120]
[321462666,1712200343787,-896.81,0.00056438,2]
[321462667,1712200343797,-702.32,0.00056438,120]
[321462668,1712200343806,-1181.29,0.00056438,120]
[321462669,1712200343816,-1340.28,0.00056438,120]
[321462670,1712200343827,-500.0,0.00056438,120]
[321462671,1712200343838,-966.98,0.00056438,120]
[321462672,1712200343849,-2239.80311544,0.00056438,120]
[321462673,1712200343909,-500.0,0.00055342,2]
[321462674,1712200343919,-151.0,0.0005589,120]
[321462675,1712200343928,-1797.78666626,0.00056438,120]
[321462676,1712200343939,-2319.5102183,0.00056438,120]
[321462677,1712200343949,-890.32,0.00056438,120]
[321462678,1712200343961,-500.0,0.00056438,120]
[321462679,1712200343971,-20.6370641,0.00056438,120]
[321462680,1712200343987,-1711.41,0.00056438,120]
[321462681,1712200346049,-904.92,0.00024055,2]
[321462682,1712200346059,-150.0,0.00024192,2]
[321462683,1712200346068,-161.95,0.00024192,2]
[321462684,1712200346078,-1074.29907066,0.0002482,2]
[321462685,1712200346865,-262.96564568,0.0002482,2]
[321462686,1712200346877,-414.83625952,0.0002482,2]
[321462687,1712200346892,-35.22823872,0.00024833,2]
[321462688,1712200347052,-270.42728545,0.00024833,2]
[321462689,1712200616122,250.0,0.00023,3]
[321462690,1712201225113,-319.72315139,0.00019482,2]
[321462691,1712201238097,-236.20819111,0.0001948,2]
[321462692,1712201279330,460.25133893,0.00040594,30]
[321462693,1712201348197,-294.85925426,0.0001948,2]
[321462694,1712201348218,-3155.84658012,0.00019481,2]
[321462695,1712201348242,-4309.13332723,0.00019499,2]
[321462696,1712201348262,-732.07475409,0.000195,2]
[321462716,1712201432273,-130.63549175,0.000195,2]
[321462718,1712201432283,-137.87682347,0.000195,2]
[321462720,1712201432295,-41.88083549,0.000195,2]
[321462721,1712201432305,-2348.36292904,0.000233,2]
[321462722,1712201432314,-146.49586996,0.00023651,2]
[321462723,1712201432326,-853.50413004,0.00023651,2]
[321462724,1712201432336,-195.19259011,0.00023651,2]
[321462725,1712201432345,-300.0,0.00024644,2]
[321462726,1712201432354,-452.97,0.00024645,2]
[321462727,1712201432364,-499.99,0.00024645,2]
[321462728,1712201432373,-2980.85705874,0.00024645,2]
[321462729,1712201432404,-669.94294126,0.00024645,2]
[321462730,1712201432414,-193.8161893,0.00024798,2]
[321462731,1712201432423,-247.65661342,0.00024798,2]
[321462732,1712201432433,-341.82362322,0.00024798,2]
[321462733,1712201432443,-170.57947174,0.00024798,2]
[321462734,1712201432452,-300.56822196,0.00024798,2]
[321462735,1712201432461,-2062.54354712,0.00024798,2]
[321462736,1712201432470,-499.3786,0.00024798,2]
[321462737,1712201432480,-448.79060595,0.00024896,2]
[321462738,1712201432489,-43.52388325,0.00024896,2]
[321462739,1712201432515,-341.48088377,0.00024896,2]
[321462740,1712201432565,-1236.26458131,0.00024896,2]
[321462741,1712201432574,-385.01987268,0.00024896,2]
[321462742,1712201432584,-3053.54276861,0.00024896,2]
[321462743,1712201438225,-623.89084551,0.00024896,2]
[321462744,1712201438378,-801.37506322,0.00024896,2]
[321462745,1712201438389,-500.0,0.00024896,2]
[321462746,1712201438399,-861.76154835,0.00024896,2]
[321462747,1712201438409,-1275.26250007,0.00024897,2]
[321462748,1712201438419,-269410.66144639,0.00024898,2]
[321462749,1712201438603,-1145.05364506,0.00024898,2]
[321462750,1712201438661,-2335.80135755,0.00024898,2]
[321462760,1712201443386,-1893.35600004,0.00024898,2]
[321462761,1712201443398,-9918.48375552,0.00024898,2]
[321462762,1712201443729,-160.49632057,0.00024898,2]
[321462764,1712201443767,-77812.96061605,0.00024898,2]
[321462765,1712201443795,-0.87538769,0.00024898,2]
[321462787,1712201446362,-3263.05456277,0.00024898,2]
[321462788,1712201446382,-10018.17832721,0.00024898,2]
[321462789,1712201446400,-437.83275575,0.00024898,2]
[321462790,1712201446412,-11887.59717412,0.00024898,2]
[321462791,1712201446445,-474.57131234,0.00024898,2]
[321462792,1712201446456,-252.34114686,0.00024898,2]
[321462793,1712201446505,-1414.80899686,0.00024898,2]
[321462794,1712201446565,-3284.71775531,0.00024898,2]
[321462795,1712201446576,-4249.4510442,0.00024898,2]
[321462798,1712201446718,-0.00324985,0.00024898,2]
[321462801,1712202384746,2750.12436086,0.00040528,30]
[321462802,1712202432181,250.0,0.00023,3]
[321462803,1712202436193,-1043.69157403,0.00023999,2]
[321462812,1712202632379,-300.0,0.00023899,2]
[321462814,1712202632388,-192.27221681,0.00023999,2]
[321462815,1712202632398,-225.13344412,0.00024,2]
[321462816,1712202632407,-555.9207,0.00024598,2]
[321462817,1712202632417,-361.32289459,0.00024598,2]
[321462818,1712202632453,-2650.82730541,0.00024598,2]
[321462819,1712202632463,-12.81037937,0.00024698,2]
[321462820,1712202632505,-256.20107005,0.00024698,2]
[321462821,1712202632522,-294.99999999,0.00024698,2]
[321462822,1712202632554,-1499.59463118,0.00024698,2]
[321462823,1712202632566,-300.0,0.00024795,2]
[321462824,1712202632575,-230.41713544,0.00024796,2]
[321462825,1712202632585,-615.83031697,0.00024797,2]
[321462826,1712202632595,-198.12529072,0.00024798,2]
[321462827,1712202632606,-170.57947174,0.00024798,2]
[321462828,1712202632616,-283.716,0.00024798,2]
[321462829,1712202632626,-1407.96422175,0.00024798,2]
[321462830,1712202632646,-1234.38584747,0.00024798,2]
[321462831,1712202632711,-326.94545494,0.00024798,2]
[321462832,1712202632728,-2280.58687834,0.00024798,2]
[321462845,1712202638411,-8291.41377942,0.00024798,2]
[321462846,1712202638423,-1556.25446919,0.00024798,2]
[321462847,1712202638439,-5963.68952621,0.00024798,2]
[321462848,1712202638545,-223938.75982268,0.00024798,2]
[321462849,1712202638555,-1000.0,0.00024798,2]
[321462850,1712202638566,-685.0,0.0002489,5]
[321462851,1712202638576,-499.99,0.0002489,2]
[321462852,1712202638585,-310.72,0.0002489,2]
[321462853,1712202638595,-1768.09871524,0.00024896,2]
[321462854,1712202638605,-2359.39786904,0.00024896,2]
[321462855,1712202638615,-3876.52523855,0.00024896,2]
[321462856,1712202638625,-1071.89263305,0.00024897,2]
[321462857,1712202638634,-605.17729026,0.00024897,2]
[321462858,1712202638644,-800434.21935779,0.00024898,2]
[321462859,1712202638653,-652.18737656,0.00024898,2]
[321462860,1712202638663,-154.46172,0.00024898,2]
[321462861,1712202638672,-243.57581149,0.00025,2]
[321462862,1712202638682,-300.0,0.00025,3]
[321462863,1712202638691,-200.0,0.00025893,2]
[321462864,1712202638701,-209.19,0.00026034,2]
[321462865,1712202638711,-1231.35,0.00026496,2]
[321462866,1712202638721,-200.0,0.00026628,2]
[321462867,1712202638730,-756.15,0.0002676,2]
[321462868,1712202638739,-420.0,0.00026867,2]
[321462869,1712202638752,-350.0,0.00027,3]
[321462870,1712202638761,-500.0,0.00027299,2]
[321462871,1712202638770,-2342.61,0.00027357,2]
[321462872,1712202638779,-250.0,0.00027397,2]
[321462873,1712202638789,-2063.60608052,0.00028092,2]
[321462874,1712202638798,-382.0,0.000281,2]
[321462875,1712202638807,-560.73809275,0.00029,2]
[321462877,1712202638816,-400.0,0.00029,3]
[321462879,1712202638825,-587.0,0.00029112,2]
[321462881,1712202638834,-185.76,0.00029139,2]
[321462883,1712202638843,-155.38,0.00029451,2]
[321462885,1712202638853,-155.38,0.00029488,2]
[321462886,1712202638863,-756.15,0.000295,2]
[321462887,1712202638872,-441.09329125,0.000295,3]
[321462888,1712202638881,-155.38,0.00029525,2]
[321462889,1712202638891,-155.38,0.00029562,2]
[321462890,1712202638900,-155.38,0.00029599,2]
[321462891,1712202638910,-154.46172,0.00029898,2]
[321462892,1712202638919,-606.74427312,0.0003,4]
[321462893,1712202638929,-405.20748901,0.0003,4]
[321462894,1712202638938,-3206.28076084,0.0003,2]
[321462895,1712202638949,-167.01,0.000307,2]
[321462896,1712202638958,-450.0,0.00031,3]
[321462897,1712202638967,-180.0,0.00031342,2]
[321462898,1712202638976,-2063.60608052,0.00031486,2]
[321462899,1712202638986,-823.0,0.00031545,2]
[321462900,1712202638995,-458.73,0.00031574,2]
[321462901,1712202639011,-198.12529072,0.00031656,2]
[321462902,1712202639020,-331.73521384,0.00032,4]
[321462903,1712202639029,-756.15,0.00032239,2]
[321462904,1712202639039,-506.03,0.00032296,2]
[321462905,1712202639048,-1486.58,0.00032316,2]
[321462906,1712202639057,-169.31,0.00032344,2]
[321462907,1712202639067,-938.34,0.00032565,2]
[321462908,1712202639076,-23900.0,0.000326,2]
[321462909,1712202639086,-163.43,0.00032771,2]
[321462910,1712202639095,-156.25,0.00032877,2]
[321462911,1712202639105,-156.25,0.00032877,2]
[321462912,1712202639114,-156.25,0.00032877,2]
[321462913,1712202639124,-156.25,0.00032877,2]
[321462914,1712202639133,-156.25,0.00032877,2]
[321462915,1712202639143,-163.43,0.00032942,2]
[321462916,1712202639152,-500.0,0.00033,3]
[321462917,1712202639162,-1000.0,0.000331,2]
[321462918,1712202639171,-163.43,0.00033113,2]
[321462919,1712202639180,-246.99,0.00033273,2]
[321462920,1712202639190,-163.43,0.00033283,2]
[321462921,1712202639199,-163.43,0.00033454,2]
[321462922,1712202639209,-150.0,0.00033462,2]
[321462923,1712202639219,-172.49,0.00033568,2]
[321462924,1712202639228,-163.43,0.00033625,2]
[321462925,1712202639239,-163.43,0.00033796,2]
[321462926,1712202639252,-458.73,0.00033838,2]
[321462927,1712202639262,-500.0,0.00033878,2]
[321462928,1712202639271,-163.43,0.00033966,2]
[321462929,1712202639280,-163.43,0.00034137,2]
[321462930,1712202639290,-1152.0,0.0003418,2]
[321462931,1712202639299,-163.43,0.00034308,2]
[321462932,1712202639309,-150.0,0.00034356,2]
[321462933,1712202639318,-163.43,0.00034479,2]
[321462934,1712202639328,-150.0,0.00034548,10]
[321462935,1712202639337,-2811.73294493,0.000348,4]
[321462936,1712202639346,-2063.60608052,0.00034879,2]
[321462937,1712202639355,-154.46172,0.00034898,2]
[321462938,1712202639365,-1281.5331215,0.00035,4]
[321462939,1712202639374,-550.0,0.00035,3]
[321462940,1712202639383,-150.0,0.0003525,2]
[321462941,1712202639392,-458.73,0.00036102,2]
[321462942,1712202639402,-150.0,0.00036144,2]
[321462943,1712202639411,-600.0,0.00037,3]
[321462944,1712202639420,-1613.0,0.00037037,2]
[321462945,1712202639430,-150.0,0.00037038,2]
[321462946,1712202639439,-1000.0,0.00037238,2]
[321462947,1712202639448,-1231.35,0.00037729,2]
[321462948,1712202639457,-150.0,0.00037931,2]
[321462949,1712202639467,-561.62,0.00038027,15]
[321462950,1712202639476,-2063.60608052,0.00038273,2]
[321462951,1712202639485,-458.73,0.00038366,2]
[321462952,1712202639495,-5003.9412926,0.00038395,2]
[321462953,1712202639506,-490.11815053,0.000385,4]
[321462954,1712202639519,-198.12529072,0.00038513,2]
[321462955,1712202639529,-2952.14781287,0.000388,2]
[321462956,1712202639539,-150.0,0.00038825,2]
[321462957,1712202639548,-4065.34553289,0.000389,15]
[321462958,1712202639558,-650.0,0.00039,3]
[321462959,1712202639568,-1054.56149234,0.00039717,2]
[321462960,1712202639577,-150.0,0.00039719,2]
[321462961,1712202639586,-1086.21726183,0.00039782,2]
[321462962,1712202639595,-154.46172,0.00039898,2]
[321462963,1712202639605,-1563.58992237,0.0004,30]
[321462964,1712202639614,-214.6091896,0.0004,30]
[321462965,1712202639624,-547.14230713,0.0004,4]
[321462966,1712202639633,-22103.7237332,0.0004,4]
[321462967,1712202639642,-192.76675003,0.0004,2]
[321462968,1712202639651,-5758.8947196,0.0004,4]
[321462969,1712202639660,-2258.0,0.00040131,3]
[321462970,1712202639669,-221.49935442,0.00040325,5]
[321462971,1712202639678,-150.0,0.00040521,2]
[321462972,1712202639687,-150.0,0.00040521,2]
[321462973,1712202639698,-200.0,0.00040521,2]
[321462974,1712202639707,-700.0,0.00040521,5]
[321462975,1712202639716,-318.41032087,0.00040521,10]
[321462976,1712202639725,-200.0,0.00040528,2]
[321462977,1712202639735,-653.27182698,0.00040528,30]
[321462978,1712202639745,-653.27182698,0.00040528,30]
[321462979,1712202639755,-389.43740372,0.00040528,15]
[321462980,1712202639764,-256.04237772,0.00040528,30]
[321462981,1712202639773,-179.21462568,0.00040564,30]
[321462982,1712202639783,-3353.30355716,0.00040594,4]
[321462983,1712202639792,-1745.64622304,0.00040596,10]
[321462984,1712202639801,-1011.28,0.000406,2]
[321462985,1712202639811,-150.0,0.00040613,2]
[321462986,1712202639820,-458.73,0.0004063,2]
[321462987,1712202639830,-561.62,0.00040767,15]
[321462988,1712202639840,-700.0,0.00041,3]
[321462989,1712202639849,-183.0,0.00041096,2]
[321462990,1712202639858,-1000.0,0.00041376,2]
[321462991,1712202639868,-150.0,0.00041507,2]
[321462992,1712202639877,-2063.60608052,0.00041667,2]
[321462993,1712202639886,-5003.9412926,0.00041819,2]
[321462994,1712202639896,-1011.28,0.0004222,2]
[321462995,1712202639905,-150.0,0.00042401,2]
[321462996,1712202639915,-458.73,0.00042894,2]
[321462997,1712202639924,-721.67168931,0.00043,4]
[321462998,1712202639933,-750.0,0.00043,3]
[321462999,1712202639942,-150.0,0.0004303,2]
[321463000,1712202639951,-899.0,0.0004303,2]
[321463001,1712202639960,-285.15,0.0004303,2]
[321463002,1712202639969,-1270.0,0.0004303,2]
[321463003,1712202639978,-150.0,0.00043295,2]
[321463004,1712202639988,-3162.0,0.00043485,3]
[321463005,1712202639997,-561.62,0.00043507,15]
[321463006,1712202640008,-6161.4,0.00043513,2]
[321463007,1712202640017,-162.66,0.00043836,2]
[321463008,1712202640026,-1011.28,0.0004384,2]
[321463009,1712202640035,-394.34,0.00043899,15]
[321463010,1712202640045,-394.34,0.00043899,15]
[321463011,1712202640054,-394.34,0.00043899,15]
[321463012,1712202640063,-394.34,0.00043899,15]
[321463013,1712202640072,-394.34,0.00043899,15]
[321463014,1712202640081,-394.34,0.00043899,15]
[321463015,1712202640090,-394.34,0.00043899,15]
[321463016,1712202640100,-394.34,0.00043899,15]
[321463017,1712202640109,-394.34,0.00043899,15]
[321463018,1712202640118,-394.34,0.00043899,15]
[321463019,1712202640128,-150.0,0.00044189,2]
[321463020,1712202640138,-2065.12604027,0.00044345,19]
[321463021,1712202640147,-154.46172,0.00044898,2]
[321463022,1712202640156,-6545.462,0.000449,60]
[321463024,1712202640166,-886.60018933,0.00044986,4]
[321463026,1712202640175,-187.35599653,0.00045,14]
[321463028,1712202640184,-328.47719203,0.00045,4]
[321463030,1712202640194,-800.0,0.00045,3]
[321463031,1712202640203,-2063.60608052,0.00045061,2]
[321463032,1712202640213,-150.0,0.00045082,2]
[321463033,1712202640222,-458.73,0.00045157,2]
[321463034,1712202640232,-1970.0,0.00045204,7]
[321463035,1712202640242,-5003.9412926,0.00045243,2]
[321463036,1712202640252,-198.12529072,0.00045371,2]
[321463037,1712202640261,-1011.28,0.0004546,2]
[321463038,1712202640271,-2065.12604021,0.0004551,20]
[321463039,1712202640280,-1000.0,0.00045513,2]
[321463040,1712202640289,-150.0,0.00045976,2]
[321463041,1712202640619,-155.01150722,0.00046,3]
[321463042,1712202640629,-561.62,0.00046247,15]
[321463043,1712202640638,-246.99,0.00046582,2]
[321463044,1712202640648,-2065.12604021,0.00046675,22]
[321463045,1712202640657,-150.0,0.0004687,2]
[321463046,1712202640666,-850.0,0.00047,3]
[321463047,1712202640676,-1011.28,0.0004708,2]
[321463048,1712202640686,-4427.0,0.00047118,3]
[321463049,1712202640695,-205.56428398,0.00047336,7]
[321463050,1712202640704,-4869.48288449,0.00047421,42]
[321463051,1712202640714,-458.73,0.00047421,2]
[321463052,1712202640724,-156.25,0.0004775,2]
[321463053,1712202640733,-156.25,0.0004775,2]
[321463054,1712202640743,-150.0,0.00047764,2]
[321463055,1712202640754,-2065.12604021,0.0004784,23]
[321463056,1712202640763,-162.66,0.00047945,2]
[321463057,1712202640772,-204.31218353,0.00048,120]
[321463058,1712202640781,-151.0,0.00048,120]
[321463059,1712202640790,-2100.0,0.00048015,30]
[321463060,1712202640799,-2063.60608052,0.00048454,2]
[321463061,1712202640809,-169.31,0.00048516,2]
[321463062,1712202640818,-150.0,0.00048658,2]
[321463063,1712202640827,-5003.9412926,0.00048668,2]
[321463064,1712202640837,-1316.0,0.000487,117]
[321463065,1712202640846,-1011.28,0.000487,2]
[321463066,1712202640855,-298.98289609,0.00048705,2]
[321463067,1712202640865,-579.71196238,0.00048705,45]
[321463068,1712202640874,-2160.21341978,0.00048705,4]
[321463069,1712202640884,-1082.75340753,0.00048706,5]
[321463070,1712202640893,-151.0,0.00048822,120]
[321463071,1712202640902,-1231.35,0.00048962,120]
[321463072,1712202640912,-561.62,0.00048986,15]
[321463074,1712202640921,-1211.0,0.00049,4]
[321463075,1712202640930,-2065.12604021,0.00049005,25]
[321463076,1712202640939,-1010.864,0.00049299,30]
[321463077,1712202640949,-666.0,0.00049315,2]
[321463078,1712202640957,-1093.10067292,0.00049315,120]
[321463079,1712202640966,-1419.33,0.00049315,60]
[321463080,1712202640975,-1000.0,0.00049315,7]
[321463081,1712202640984,-1000.0,0.00049315,7]
[321463082,1712202640993,-1000.0,0.00049315,7]
[321463083,1712202641005,-1000.0,0.00049315,7]
[321463084,1712202641014,-1000.0,0.00049315,7]
[321463085,1712202641023,-1000.0,0.00049315,7]
[321463086,1712202641032,-506.0,0.00049315,7]
[321463088,1712202641041,-217649.498625,0.0004949,15]
[321463089,1712202641051,-150.0,0.00049552,2]
[321463090,1712202641060,-151.0,0.00049644,120]
[321463091,1712202641070,-1000.0,0.00049651,120]
[321463092,1712202641080,-458.73,0.00049685,2]
[321463093,1712202641089,-152.21,0.000497,6]
[321463094,1712202641098,-152.21,0.000497,6]
[321463095,1712202641107,-152.21,0.000497,6]
[321463096,1712202641117,-152.21,0.000497,6]
[321463097,1712202641126,-1417.98,0.000497,6]
[321463098,1712202641135,-1417.98,0.000497,6]
[321463099,1712202641145,-1417.98,0.000497,6]
[321463100,1712202641154,-1417.98,0.000497,6]
[321463101,1712202641163,-1417.98,0.000497,6]
[321463102,1712202641173,-1417.98,0.000497,6]
[321463103,1712202641182,-1417.98,0.000497,6]
[321463104,1712202641191,-1417.98,0.000497,6]
[321463105,1712202641201,-1417.98,0.000497,6]
[321463106,1712202641210,-1417.98,0.000497,6]
[321463107,1712202641219,-1417.98,0.000497,6]
[321463108,1712202641229,-1417.98,0.000497,6]
[321463109,1712202641238,-1417.98,0.000497,6]
[321463110,1712202641250,-1417.98,0.000497,6]
[321463111,1712202641260,-1417.98,0.000497,6]
[321463112,1712202641270,-1417.98,0.000497,6]
[321463113,1712202641279,-1417.98,0.000497,6]
[321463114,1712202641289,-1417.98,0.000497,6]
[321463115,1712202641298,-1417.98,0.000497,6]
[321463116,1712202641308,-1417.98,0.000497,6]
[321463117,1712202641318,-8165.6213153,0.000498,60]
[321463118,1712202641327,-154.46172,0.00049898,2]
[321463119,1712202641337,-1421.73675848,0.0005,21]
[321463120,1712202641346,-4378.9904888,0.0005,120]
[321463121,1712202641356,-541.51223081,0.0005,28]